Cogmind - Beta 11 X6 @@@ ROGUE MODE // 2021.08.08 @ 14:32:20 Player: Stryker Result: Heading to fleet! Performance ------------- Evolutions (9) 4500 Regions Visited (30) 6000 Robots Destroyed (410) 2050 Value Destroyed (21150) 21150 Prototype IDs (96) 1920 Alien Tech Used (14) 2800 Bonus (28765) 28765 TOTAL SCORE: 67185 Bonus ------- High Alert Combat Kills 1130 Follower Combat Kills 1790 Network Hubs Disabled 200 Met Data Miner 300 Met Imprinter 300 Met Zhirov 300 Built Enhanced Grunts 300 Met R17 at Cetus 500 Used Core Reset Matrix 3000 Destroyed MAIN.C Guards 500 Met MAIN.C 5000 Destroyed MAIN.C Shell 5000 Destroyed MAIN.C 10000 Win 3000 Friendly Fire -2555 Cogmind --------- Core Integrity 458/1850 Matter 420/425 Energy 98/100 System Corruption 28% Temperature Cool (0) Movement Core (50) Location To Fleet Rendezvous Parts ------- > --- POWER (2) -------- (None) > --- PROPULSION (6) --- Centrium Heavy Treads > --- UTILITY (14) ----- Spectral Analyzer > --- WEAPON (4) ------- (None) > --- INVENTORY (7) ---- Phase Armor Perforator Peak State ------------ > --- POWER ------------ Quantum Reactor Improved Quantum Reactor > --- PROPULSION ------- Biometal Heavy Treads Experimental Biometal Heavy Treads Advanced Heavy Siege Treads > --- UTILITY ---------- Huge Storage Unit Advanced Energy Well Experimental Matter Compressor Advanced Signal Interpreter Experimental Targeting Computer Improved Weapon Cycler Advanced Phase Shifter Heavy Regenerative Plating EM Disruption Field Advanced Force Field Advanced Hacking Suite Advanced Hacking Suite Advanced Hacking Suite > --- WEAPON ----------- Enhanced Quantum Rifle Enhanced Nova Cannon Perforator > --- INVENTORY -------- Quantum Reactor Centrium Heavy Treads Biometal Heavy Treads Experimental Matter Compressor Advanced Sensor Array Improved Kinecellerator Advanced Phase Shifter Centrium Medium Armor Plating Phase Armor Advanced Focal Shield Improved Shock Absorption System Antimissile System High-powered Transdimensional Reconstructor Integrity Redistributor Integrity Redistributor Integrity Redistributor Enhanced Nova Cannon Core Cannon Enhanced Coil Gun Enhanced Coil Gun Enhanced Coil Gun Helical Railgun Enhanced Force Lance [Rating: 239] Favorites ----------- Power Antimatter Reactor Engine Cooled Ion Engine Power Core Reinforced Fission Core Reactor Antimatter Reactor Propulsion Improved Heavy Treads Treads Improved Heavy Treads Leg Aluminum Leg Wheel Wheel Hover Unit Aerolev Unit Flight Unit Improved VTOL Module Utility Advanced Hacking Suite Device Structural Scanner Storage Huge Storage Unit Processor Advanced Signal Interpreter Hackware Advanced Hacking Suite Protection Centrium Medium Armor Plating Artifact Phase Redirector Weapon Improved KE Penetrator Energy Gun Advanced Variable Charge Gun Energy Cannon Enhanced Nova Cannon Ballistic Gun Improved KE Penetrator Ballistic Cannon Perforator Launcher Missile Launcher Impact Weapon Maul Slashing Weapon Great Axe Piercing Weapon Enhanced Force Lance Special Melee Weapon Advanced Datajack Build | -11 -10 -9 -8 -7 -7 -7 -7 -6 -6 -6 -6 -6 -5 -5 -5 -5 -5 -5 -4 -4 -4 -4 -3 -3 -3 -2 -2 -2 -1 -1 ------- Run | Scr Mat Mat Mat Fac Low Low Dat Pro Fac Low Low Zio Pro Fac Ext Cet Arc Hub Fac Upp Upp Zhi Pro Res Tes Res Qua Sec Acc Com Slots Evolved 18 | . . 2 2 2 . . . . 2 . . . . 2 . . . . 2 . . . . 2 . 2 . . 2 . Power 1 | . . . . . . . . . . . . . . . . . . . 1 . . . . . . . . . . . Propulsion 4 | . . 1 1 . . . . . . . . . . . . . . . . . . . . 1 . . . . 1 . Utility 12 | . . 1 1 2 . . . . 2 . . . . 2 . . . . 1 . . . . 1 . 1 . . 1 . Weapon 1 | . . . . . . . . . . . . . . . . . . . . . . . . . . 1 . . . . Parts Attached 827 | 2 16 51 74 15 10 18 . 13 36 20 5 5 5 52 27 15 7 9 51 2 6 6 8 45 26 46 50 86 64 57 Power 32 | . 3 2 2 1 . . . . 1 . 1 . . 1 1 4 . . 3 . 1 1 . 5 . . 1 5 . . Engine 9 | . 2 2 2 1 . . . . . . 1 . . 1 . . . . . . . . . . . . . . . . Core 5 | . 1 . . . . . . . . . . . . . 1 . . . 1 . 1 . . 1 . . . . . . Reactor 18 | . . . . . . . . . 1 . . . . . . 4 . . 2 . . 1 . 4 . . 1 5 . . Propulsion 121 | . 7 27 40 2 . 1 . 1 5 . . . . 6 . 2 1 2 1 . 1 1 . 5 2 3 3 7 1 3 Treads 79 | . 3 12 19 2 . . . 1 4 . . . . 6 . 2 1 2 1 . 1 1 . 5 2 3 3 7 1 3 Leg . | . . . . . . . . . . . . . . . . . . . . . . . . . . . . . . . Wheel 40 | . 4 15 19 . . 1 . . 1 . . . . . . . . . . . . . . . . . . . . . Hover 1 | . . . 1 . . . . . . . . . . . . . . . . . . . . . . . . . . . Flight 1 | . . . 1 . . . . . . . . . . . . . . . . . . . . . . . . . . . Utility 511 | 1 3 9 20 10 7 13 . 10 19 15 3 4 3 41 23 6 3 5 36 2 2 3 6 31 16 37 34 54 57 38 Device 373 | 1 2 3 13 5 6 10 . 8 11 11 2 3 3 30 13 2 2 4 23 2 1 3 6 26 14 30 27 39 47 26 Storage 31 | . 1 1 . . . . . . 1 . . . . 1 1 1 . 1 . . . . . . 1 2 1 8 8 4 Processor 15 | . . . . 3 . . . . . . . . . . . . . . 1 . . . . . . . 1 4 2 4 Hackware 13 | . . . . . . . . . 2 . . . . 2 . 1 1 . 5 . . . . . . 1 1 . . . Protection 78 | . . 5 7 2 1 3 . 2 5 4 1 1 . 8 9 2 . . 7 . 1 . . 5 1 4 3 3 . 4 Artifact 1 | . . . . . . . . . . . . . . . . . . . . . . . . . . . 1 . . . Weapon 163 | 1 3 13 12 2 3 4 . 2 11 5 1 1 2 4 3 3 3 2 11 . 2 1 2 4 8 6 12 20 6 16 Energy Gun 31 | 1 2 5 2 . . 1 . . . . . . . . 1 1 . . 2 . . 1 . 1 2 3 2 5 1 1 Energy Cannon 39 | . . 3 4 . . . . 1 3 . . 1 1 . . . . . . . 1 . . 1 4 1 7 3 4 5 Ballistic Gun 57 | . . 2 5 1 2 1 . 1 3 1 . . . 3 2 1 2 2 7 . . . 1 1 . 2 2 10 1 7 Ballistic Cannon 7 | . . . . . . . . . 1 1 . . . . . . . . . . . . . . 2 . . 2 . 1 Launcher 8 | . . 3 . . . 1 . . . 2 . . 1 . . . . . . . . . 1 . . . . . . . Special Weapon . | . . . . . . . . . . . . . . . . . . . . . . . . . . . . . . . Impact Weapon 2 | . 1 . 1 . . . . . . . . . . . . . . . . . . . . . . . . . . . Slashing Weapon 16 | . . . . 1 1 1 . . 4 1 1 . . 1 . 1 1 . 2 . 1 . . 1 . . . . . . Piercing Weapon 2 | . . . . . . . . . . . . . . . . . . . . . . . . . . . . . . 2 Special Melee Weapon 1 | . . . . . . . . . . . . . . . . . . . . . . . . . . . 1 . . . Unidentified Prototypes 39 | . . 1 4 . 1 . . . 2 . . 1 . . . 5 . . 1 . . 4 . . 5 . 2 11 1 1 Corrupted Parts 1 | . . . . . . . . . . . . . . . . . . 1 . . . . . . . . . . . . System Corruption 4 | . . . . . . . . . . . . . . . . . . 4 . . . . . . . . . . . . Parts Lost 86 | . 4 3 10 . . 1 . 2 1 2 . . . 8 4 . . 1 4 . . . . 5 . 3 7 11 . 20 Power 7 | . 1 . . . . . . . . . . . . . . . . . . . . . . 3 . . 1 1 . 1 Propulsion 15 | . 1 2 5 . . . . 1 1 . . . . 1 . . . . . . . . . 1 . . . 2 . 1 Utility 45 | . . 1 4 . . . . . . . . . . 5 4 . . 1 1 . . . . 1 . 3 5 6 . 14 Weapon 19 | . 2 . 1 . . 1 . 1 . 2 . . . 2 . . . . 3 . . . . . . . 1 2 . 4 Highest Loss Streak 10 | . 2 1 4 . . 1 . 2 1 1 . . . 3 2 . . 1 2 . . . . 2 . 2 3 7 . 10 Average Slot Usage (%) 90 | . 99 99 99 100 99 99 100 100 97 92 91 86 87 89 86 88 88 88 86 90 90 89 90 87 83 86 88 86 79 74 Engine 3 | . 13 11 9 7 7 7 7 7 2 . 4 6 6 5 2 . . . . . . . . . . . . . . . Reactor 4 | . . . . . . . . . 3 6 1 . . . . 4 5 5 5 10 8 7 10 8 9 8 8 8 7 6 Treads 13 | . 10 11 19 15 14 14 14 14 12 18 18 18 18 14 11 11 11 11 10 10 10 10 10 11 12 12 12 11 10 10 Wheel 4 | . 11 20 16 15 14 14 14 14 9 . . . . . . . . . . . . . . . . . . . . . Device 14 | . 14 10 11 15 13 12 7 13 15 11 10 6 6 12 20 17 20 18 18 10 10 9 10 13 13 17 22 16 16 14 Storage 6 | . 14 11 9 7 7 7 7 7 6 6 6 6 6 5 7 8 7 8 5 5 5 5 5 4 4 5 4 6 4 8 Processor 6 | . . . . 15 14 14 14 14 12 12 12 12 12 8 5 5 5 5 5 5 5 5 5 4 4 4 4 5 7 7 Hackware 10 | . . . . . . . . . 11 12 12 12 12 19 11 11 11 11 19 20 20 20 20 18 18 16 13 16 14 6 Protection 7 | . . 11 14 7 7 8 14 7 2 6 6 5 6 6 7 11 11 11 6 15 14 15 14 11 8 7 2 3 3 4 Energy Gun 3 | . 27 12 3 7 7 4 . . . . . . . . 2 4 5 5 5 5 4 1 5 4 2 3 1 4 . . Energy Cannon 2 | . . 4 5 . . . . 4 5 6 . 3 5 5 . . . . . . . 5 . 1 3 3 3 1 2 2 Ballistic Gun 7 | . . 3 7 5 7 13 14 14 9 6 6 6 6 7 13 10 6 8 6 10 9 5 9 7 1 6 10 7 3 5 Ballistic Cannon 1 | . . . . . . . . . . 3 6 6 6 2 . . . . . . . . . . 2 1 . 1 3 2 Naked Turns 14 | . . . . . . . . . . . . . . . . . . . . . . . . . . . . . . 14 Heaviest Build 225 | 15 53 106 115 104 108 108 108 111 126 128 127 132 132 141 161 150 143 143 148 146 151 153 148 166 168 186 184 184 201 225 Greatest Support 240 | 20 20 32 80 26 26 26 20 20 135 135 135 135 135 150 150 150 155 155 150 150 150 155 155 185 185 190 190 183 240 240 Greatest Overweight (x) 6 | . 5 5 6 3 4 5 5 5 5 . . . . 1 1 . . . . . 1 1 . 1 1 1 . 1 . . Average Overweight (x) 1 | . 2 3 4 3 3 3 5 5 3 . . . . . . . . . . . . . . . . . . . . . Largest Inventory Capacity 27 | 8 20 25 25 25 25 25 25 25 25 25 25 25 25 25 25 25 25 25 25 25 25 25 25 25 25 25 25 27 27 27 Average Capacity 24 | 8 14 24 25 25 25 25 25 25 25 25 25 25 25 25 25 25 25 25 25 25 25 25 25 25 25 25 25 25 27 26 Most Carried 27 | 7 20 25 25 25 25 25 25 25 25 25 25 25 25 25 25 25 25 25 25 25 25 25 25 25 25 25 25 27 27 27 Average Carried 24 | 6 11 24 24 24 24 24 25 24 24 24 24 24 25 23 24 24 24 24 24 25 25 24 24 24 24 24 24 24 26 24 Final Capacity 27 | 8 20 25 25 25 25 25 25 25 25 25 25 25 25 25 25 25 25 25 25 25 25 25 25 25 25 25 25 27 27 27 Final Carried 27 | 7 20 25 25 25 25 25 25 24 25 25 25 25 25 25 25 25 25 25 25 25 25 25 25 23 25 25 22 27 27 27 Class Distribution -------------------- 21% | Hacker-Mutant 14% | Hacker-Tank 12% | Mutant 11% | Hacker-Skirmisher 7% | Scavenger-Skirmisher 7% | Hacker-Assassin 7% | Scavenger-Mutant 5% | Scavenger-Assassin 4% | Scavenger-Tank Dominant Class ---------------- Mutant | -10/Materials Mutant | -9/Materials Scavenger-Mutant | -8/Materials Scavenger-Skirmisher | -7/Factory Scavenger-Assassin | -7/Lower Caves Scavenger-Skirmisher | -7/Lower Caves Mutant | -7/Data Miner Scavenger-Skirmisher | -6/Proximity Caves Scavenger-Assassin | -6/Factory Scavenger-Mutant | -6/Lower Caves Hacker-Assassin | -6/Lower Caves Hacker-Mutant | -6/Zion Hacker-Skirmisher | -5/Proximity Caves Hacker-Mutant | -5/Factory Scavenger-Tank | -5/Extension Scavenger-Tank | -5/Cetus Scavenger-Assassin | -5/Archives Scavenger-Tank | -5/Hub_04(d) Hacker-Assassin | -4/Factory Hacker-Tank | -4/Upper Caves Hacker-Tank | -4/Upper Caves Hacker-Assassin | -4/Zhirov Hacker-Tank | -3/Proximity Caves Hacker-Tank | -3/Research Hacker-Skirmisher | -3/Testing Hacker-Mutant | -2/Research Hacker-Mutant | -2/Quarantine Hacker-Mutant | -2/Section 7 Hacker-Mutant | -1/Access Alien-Mutant | -1/Command Resources | -11 -10 -9 -8 -7 -7 -7 -7 -6 -6 -6 -6 -6 -5 -5 -5 -5 -5 -5 -4 -4 -4 -4 -3 -3 -3 -2 -2 -2 -1 -1 ----------- Run | Scr Mat Mat Mat Fac Low Low Dat Pro Fac Low Low Zio Pro Fac Ext Cet Arc Hub Fac Upp Upp Zhi Pro Res Tes Res Qua Sec Acc Com Matter Collected 18096 | 220 360 651 1034 136 70 535 . 131 606 389 53 77 124 1081 712 215 126 129 856 45 50 70 529 900 225 1258 727 2288 2185 2314 Remotely . | . . . . . . . . . . . . . . . . . . . . . . . . . . . . . . . Salvage Created 24223 | 126 775 1300 2034 97 . 644 . 80 587 338 . . 113 1124 809 222 360 337 1046 . . 485 218 1416 328 1145 983 2661 2261 4734 Parts 1117 | 6 38 75 99 10 . 26 . 6 26 14 . . 1 68 43 12 20 21 43 . . 1 14 87 26 50 39 152 107 133 Haulers Intercepted 12 | . 2 5 4 . . . . . . . . . . . . . . . . . . . . . . . . . 1 . Recyclers Shooed 16 | . 1 . 5 . . . . . . . . . . 5 . . . 1 . . . . . . . 2 . . 1 1 Parts Field Recycled . | . . . . . . . . . . . . . . . . . . . . . . . . . . . . . . . Retrieved Matter . | . . . . . . . . . . . . . . . . . . . . . . . . . . . . . . . Parts Self-Destructed 57 | . . . . . . 25 . 8 . 9 . . 2 . . . . . . . . 1 12 . . . . . . . Prevented 5 | . . . . . . . . . . 5 . . . . . . . . . . . . . . . . . . . . Kills | -11 -10 -9 -8 -7 -7 -7 -7 -6 -6 -6 -6 -6 -5 -5 -5 -5 -5 -5 -4 -4 -4 -4 -3 -3 -3 -2 -2 -2 -1 -1 ------- Run | Scr Mat Mat Mat Fac Low Low Dat Pro Fac Low Low Zio Pro Fac Ext Cet Arc Hub Fac Upp Upp Zhi Pro Res Tes Res Qua Sec Acc Com Combat Hostiles Destroyed 310 | . 9 26 31 . . 12 . 2 9 12 . . 4 21 12 2 1 2 12 . . . 7 19 5 14 11 35 22 42 Melee 1 | . . . 1 . . . . . . . . . . . . . . . . . . . . . . . . . . . Guns 180 | . 8 14 10 . . 8 . . 4 3 . . . 9 12 2 1 2 10 . . . 5 17 1 13 9 26 2 24 Cannons 90 | . . 6 15 . . . . 2 3 4 . . 1 12 . . . . . . . . . 1 4 . 2 7 18 15 AOE 21 | . . 4 . . . 4 . . 2 5 . . 3 . . . . . 1 . . . 2 . . . . . . . Classes Destroyed 20 | 2 5 4 2 . . 2 . 2 . . . . . . 1 . . . . . . . . . . . . 1 . 1 Worker 8 | . . 2 1 1 . . . . . . . . . . 1 . . . 2 . . . . . . . . 1 . . Builder 15 | . 2 1 1 . . . . . . . . . . 1 . . . 2 1 . . . . . . . . 4 3 . Tunneler 4 | 2 1 . . . . . . . 1 . . . . . . . . . . . . . . . . . . . . . Hauler 12 | . 2 5 4 . . . . . . . . . . . . . . . . . . . . . . . . . 1 . Recycler 18 | 1 3 . 6 . . . . . . . . . . 1 . . . 1 1 . . . . . . 2 . . 2 1 Mechanic 3 | . . 1 1 . . 1 . . . . . . . . . . . . . . . . . . . . . . . . Operator 16 | . . 2 . 1 . . . . . . . . . . . . 8 1 . . . . . 2 . . . 1 . 1 Watcher 23 | . 2 4 3 2 . . . . . . . . . . . . . . . . . . . . . . 3 4 4 1 Swarmer 66 | . 3 6 7 . . 3 . . . 8 . . 2 8 4 . . . . . . . 5 3 . 4 . 8 . 5 Grunt 91 | . 6 18 15 . . 6 . . 6 4 . . 1 2 1 . . . 4 . . . 2 7 . . 5 4 1 9 Brawler 3 | . . . . . . 1 . . . . . . . . . . . . . . . . . . . . 1 . . 1 Duelist 3 | . . . 1 . . . . . . . . . . . . . . . . . . . . . . . . . . 2 Sentry 30 | . . 2 7 . . 2 . . 1 . . . 1 3 5 . 1 . 1 . . . . 2 . 1 . 2 . 2 Specialist 2 | . . . . . . . . . . . . . . . . . . . . . . . . . . . . . . 2 Hunter 41 | . . . . . . . . 1 2 . . . . 5 1 . . 1 4 . . . . . . 2 2 5 11 7 Programmer 53 | . . . . . . . . 1 . . . . . 2 . . . . 2 . . . . 4 5 6 3 12 10 8 Heavy 9 | . . . 1 . . . . . . . . . . 1 . . . 1 1 . . . . 3 . 1 . . . 1 Behemoth 2 | . . . . . . . . . . . . . . . 1 . . . . . . . . . . . . 1 . . Cetus Guard 2 | . . . . . . . . . . . . . . . . 2 . . . . . . . . . . . . . . S7 Guard 1 | . . . . . . . . . . . . . . . . . . . . . . . . . . . . 1 . . M Guard 2 | . . . . . . . . . . . . . . . . . . . . . . . . . . . . . . 2 Combat Programmer 1 | . . . . . . . . . . . . . . . . . . . . . . . . . . . . . . 1 Executioner 2 | . . . . . . . . . . . . . . . . . . . . . . . . . . . . 2 . . Samaritan 2 | . . . . . . 2 . . . . . . . . . . . . . . . . . . . . . . . . Best Kill Streak 12 | 2 3 6 6 1 . 5 . 1 3 4 . . 3 4 4 1 3 3 4 . . . 5 8 3 5 6 12 6 12 Combat Bots Only 12 | . 2 4 4 . . 5 . 1 2 4 . . 3 4 4 1 1 2 2 . . . 5 7 3 5 6 9 3 12 Max Kills in Single Turn 3 | 1 1 3 2 1 . 2 . 1 3 2 . . 2 1 2 1 1 3 2 . . . 2 2 1 3 1 2 2 2 Gunslinging 2 | . . . . . . . . . . . . . . . . . . . 1 . . . 1 . . 2 . 1 . 1 Exploded 2 | . . 2 . . . 2 . . 2 2 . . 2 . . . . . 1 . . . 1 . . . . . . . Melee 1 | . . . 1 . . . . . . . . . . . . . . . . . . . . . . . . . . . Uniques/NPCs Destroyed 3 | . . . . . . . . . . . . . . . . 1 . . . . . . . . . . . . . 2 A7 (-5/Cetus) MAIN.C Shell (-1/Command) MAIN.C (-1/Command) Combat | -11 -10 -9 -8 -7 -7 -7 -7 -6 -6 -6 -6 -6 -5 -5 -5 -5 -5 -5 -4 -4 -4 -4 -3 -3 -3 -2 -2 -2 -1 -1 -------- Run | Scr Mat Mat Mat Fac Low Low Dat Pro Fac Low Low Zio Pro Fac Ext Cet Arc Hub Fac Upp Upp Zhi Pro Res Tes Res Qua Sec Acc Com Damage Taken 38610 | 20 563 1034 2407 64 . 793 . 302 769 766 . . 201 1680 2040 93 112 948 2295 . . . 471 3176 125 2452 2387 3286 600 12026 Core 2666 | 10 87 77 403 18 . 39 . 22 59 82 . . 38 33 135 11 10 44 105 . . . . 227 . 50 465 162 29 560 Absorbed by Shields 5602 | . . . 267 . . . . . . 37 . . . 222 470 98 118 280 550 . . . . 403 . 300 . 531 627 1699 Reduced by Siege Mode 2685 | . . . . . . . . . 27 20 . . . 82 124 . . 100 147 . . . 30 258 9 175 74 264 51 1324 Redirected to Core 394 | . . . . . . . . . . . . . . . . . . . . . . . . . . . 394 . . . Core Remaining (%) 68 | 96 61 80 26 . . . . 88 . . . . 78 . . . . 76 . . . . 86 . 82 . . 57 . 24 Volleys Fired 1133 | 12 51 93 128 12 . 38 . 4 24 23 . . 6 67 60 5 7 10 36 . 1 . 12 70 15 59 60 104 81 155 Largest 4 | 2 2 2 2 2 . 3 . 3 3 3 . . 3 3 3 3 3 3 3 . 1 . 3 3 3 4 4 4 3 4 Hottest 308 | 90 115 133 135 94 . 125 . 128 138 195 . . 176 176 151 148 146 146 207 . 98 . 148 228 242 277 277 284 250 308 Shots Fired 2742 | 24 99 180 248 23 . 89 . 12 68 47 . . 14 160 151 15 20 28 104 . 1 . 28 198 23 161 158 293 154 444 Gun 2044 | 24 99 146 136 23 . 83 . 8 44 18 . . 4 69 150 15 20 28 104 . . . 25 181 8 123 118 255 52 311 Cannon 679 | . . 31 112 . . . . 4 24 24 . . 8 91 1 . . . . . 1 . . 17 15 38 40 38 102 133 Launcher 19 | . . 3 . . . 6 . . . 5 . . 2 . . . . . . . . . 3 . . . . . . . Special . | . . . . . . . . . . . . . . . . . . . . . . . . . . . . . . . Kinetic 1498 | . . 42 87 12 . 64 . 8 50 30 . . 8 93 130 13 14 20 58 . . . 17 107 7 78 80 159 77 344 Thermal 1163 | 11 68 135 161 11 . 19 . 4 6 6 . . 4 67 21 2 6 8 46 . 1 . 8 91 16 83 78 134 77 100 Explosive 19 | . . 3 . . . 6 . . . 5 . . 2 . . . . . . . . . 3 . . . . . . . Electromagnetic 62 | 13 31 . . . . . . . 12 6 . . . . . . . . . . . . . . . . . . . . Robot Hit Streak 91 | 8 8 17 18 4 . 11 . 6 11 11 . . 10 19 49 6 5 26 32 . . . 15 24 8 19 24 48 22 91 Robot Miss Streak 7 | 5 3 2 5 5 . 3 . 2 3 4 . . 2 3 3 2 1 . 2 . . . 2 3 3 3 5 4 3 7 Penetration Max 2 | . . . . . . . . . 1 . . . . . 2 1 . . 1 . . . . 1 . . . 1 1 1 Secondary Targets 37 | . . 1 . . . 4 . . . . . . . . 1 1 1 . 4 . . . 1 6 . 3 2 6 . 7 Max Gunslinging Chain 2 | . . 1 . . . 1 . . . . . . . . 1 1 1 . 1 . . . 1 1 . 2 1 1 . 1 Shots Hit Robots 2092 | 16 59 128 191 13 . 65 . 6 49 28 . . 13 109 121 17 30 24 94 . . 10 22 150 12 124 101 198 117 395 Core Hits 1059 | 3 30 53 74 7 . 31 . 7 35 27 . . 13 68 44 7 15 16 34 . . 3 13 52 10 33 31 90 84 279 Critical Kills 69 | . . . 2 . . . . . . . . . . 4 3 1 1 . 2 . . . 2 4 2 4 4 15 14 11 Critical Parts Destroyed 140 | . . . . . . 1 . . 5 . . . 1 7 9 1 . . 4 . . . . 4 2 8 4 19 27 48 Critical Strikes 307 | 2 8 7 4 1 . 2 . . 5 . . . 2 12 13 3 3 . 7 . . . 2 9 4 13 9 35 51 115 Burn 19 | 2 6 7 2 1 . 1 . . . . . . . . . . . . . . . . . . . . . . . . Meltdown 11 | . . . 2 . . . . . . . . . . . . . . . . . . . . . . 2 1 2 2 2 Destroy 274 | . . . . . . 1 . . 5 . . . 2 12 13 3 2 . 7 . . . 2 9 4 11 8 33 49 113 Corrupt 2 | . 2 . . . . . . . . . . . . . . . . . . . . . . . . . . . . . Sever 1 | . . . . . . . . . . . . . . . . . 1 . . . . . . . . . . . . . Melee Attacks 124 | . 1 . 34 5 3 3 . 2 11 3 2 . . 3 . 7 18 1 13 . 1 10 . 1 . . . . . 6 Impact 35 | . 1 . 34 . . . . . . . . . . . . . . . . . . . . . . . . . . . Slashing 83 | . . . . 5 3 3 . 2 11 3 2 . . 3 . 7 18 1 13 . 1 10 . 1 . . . . . . Piercing 6 | . . . . . . . . . . . . . . . . . . . . . . . . . . . . . . 6 Sneak Attacks 22 | . . . . . . 2 . . . . . . . . . 7 10 1 2 . . . . . . . . . . . Combat Hostiles . | . . . . . . . . . . . . . . . . . . . . . . . . . . . . . . . Follow-up Attacks . | . . . . . . . . . . . . . . . . . . . . . . . . . . . . . . . Damage Inflicted 63563 | 245 802 2344 3932 273 . 1817 . 104 1297 1005 . . 633 2763 2225 897 2200 1035 3058 . . 1326 941 4401 551 4325 3353 6478 4110 13448 Guns 39170 | 180 802 1595 1674 223 . 1099 . 48 616 158 . . 21 593 2194 247 373 554 2535 . . . 510 4082 278 3308 2622 5791 1275 8392 Cannons 15671 | . . 430 1650 . . . . 56 491 474 . . 261 2150 31 . . . . . . . . 319 273 1017 731 687 2835 4266 Explosions 2656 | 65 . 319 . . . 454 . . 190 373 . . 351 . . . . 355 118 . . . 431 . . . . . . . Melee 6046 | . . . 608 50 . 264 . . . . . . . . . 650 1827 126 405 . . 1326 . . . . . . . 790 Ramming 20 | . . . . . . . . . . . . . . 20 . . . . . . . . . . . . . . . . Kinetic 28630 | . . 356 1105 105 . 761 . 48 753 346 . . 157 1254 1677 172 230 323 1286 . . . 318 2206 136 1801 1556 3307 1636 9097 Thermal 25811 | 127 567 1669 2219 118 . 338 . 56 290 120 . . 125 1489 548 75 143 231 1367 . . . 192 2195 415 2524 1797 3171 2474 3561 Explosive 1928 | . . 319 . . . 454 . . . 373 . . 351 . . . . . . . . . 431 . . . . . . . Electromagnetic 1128 | 118 235 . . . . . . . 254 166 . . . . . . . 355 . . . . . . . . . . . . Impact 608 | . . . 608 . . . . . . . . . . . . . . . . . . . . . . . . . . . Slashing 4648 | . . . . 50 . 264 . . . . . . . . . 650 1827 126 405 . . 1326 . . . . . . . . Piercing 790 | . . . . . . . . . . . . . . . . . . . . . . . . . . . . . . 790 Highest Corruption 28 | . 2 1 1 . . . . . . . . . . 2 2 . . 7 1 1 1 . . 5 5 3 4 5 6 28 Average Corruption 2 | . 2 1 1 . . . . . . . . . . 2 1 . . 2 1 1 1 . . 2 3 2 3 3 3 8 Corruption Purged 18 | . . . . . . . . . . . . . . . 2 . . . 1 . 1 . . 2 2 . . . 6 4 Effects 174 | . 9 3 7 . . . . . . . . . . 4 12 . . 1 5 1 . . . 7 22 8 14 34 24 23 Message Errors 60 | . 3 2 1 . . . . . . . . . . 1 3 . . . 2 . . . . 3 9 1 5 11 10 9 Matter Fused 19 | . . . . . . . . . . . . . . . . . . . . . . . . 1 5 1 . 7 4 1 Heat Flow Errors 24 | . 2 . . . . . . . . . . . . 1 4 . . . . . . . . 1 1 4 1 6 2 2 Energy Discharges 28 | . 4 . 2 . . . . . . . . . . 1 1 . . 1 3 . . . . 1 3 2 2 5 2 1 Data Loss (minor) 25 | . . 1 3 . . . . . . . . . . . 4 . . . . 1 . . . . 4 . 5 4 2 1 Data Loss (major) 2 | . . . . . . . . . . . . . . . . . . . . . . . . . . . . . 2 . Misfires 1 | . . . . . . . . . . . . . . . . . . . . . . . . . . . . 1 . . Misdirections 1 | . . . . . . . . . . . . . . . . . . . . . . . . . . . . . . 1 Weapon Failures 14 | . . . 1 . . . . . . . . . . 1 . . . . . . . . . 1 . . 1 . 2 8 Overload Shots . | . . . . . . . . . . . . . . . . . . . . . . . . . . . . . . . Overflow Damage 2218 | . . 46 95 . . 231 . . . 5 . . . 21 . 38 453 105 222 . . 566 80 13 . 134 32 . 99 78 Projectiles 419 | . . 17 20 . . . . . . 5 . . . 21 . . . . . . . . . 13 . 134 32 . 99 78 Explosions 118 | . . 29 . . . . . . . . . . . . . . . 9 . . . . 80 . . . . . . . Melee 1681 | . . . 75 . . 231 . . . . . . . . . 38 453 96 222 . . 566 . . . . . . . . Knockbacks 83 | . . . 4 . . . . . 5 5 . . . 12 . . . . . . . . . . 3 . . 10 15 29 Impact 5 | . . . 4 . . . . . . . . . . 1 . . . . . . . . . . . . . . . . Kinetic 76 | . . . . . . . . . 5 5 . . . 10 . . . . . . . . . . 3 . . 10 15 28 Secondary 2 | . . . . . . . . . . . . . . 1 . . . . . . . . . . . . . . . 1 Self-Inflicted Damage 191 | 20 . . . . . . . . . 64 . . . . . . . 97 . . . . 10 . . . . . . . Shots 5 | 1 . . . . . . . . . 2 . . . . . . . 1 . . . . 1 . . . . . . . Rammed 3 | . . . . . . . . . . . . . . 3 . . . . . . . . . . . . . . . . Targets Rammed 3 | . . . . . . . . . . . . . . 3 . . . . . . . . . . . . . . . . Kicked . | . . . . . . . . . . . . . . . . . . . . . . . . . . . . . . . Crushed . | . . . . . . . . . . . . . . . . . . . . . . . . . . . . . . . Highest Temperature 412 | 192 303 165 246 170 . 301 . 26 88 354 . . 108 302 277 . . 318 365 . 56 . 172 226 195 199 242 412 155 150 Average Temperature 88 | 73 67 30 66 62 . 100 . 18 26 153 . . 50 81 67 . . 145 145 . 36 . 76 97 74 94 87 135 79 101 Received Heat Transfer 4218 | . 249 435 776 21 . 381 . 6 153 189 . . 54 54 383 8 20 3 136 . . . 9 287 . 9 351 233 . 461 Effects 13 | . . . . . . . . . . . . . . . . . . . 1 . . . . . . . . 12 . . Shutdowns 2 | . . . . . . . . . . . . . . . . . . . . . . . . . . . . 2 . . Energy Bleed 2 | . . . . . . . . . . . . . . . . . . . 1 . . . . . . . . 1 . . Interference 7 | . . . . . . . . . . . . . . . . . . . . . . . . . . . . 7 . . Matter Decay 1 | . . . . . . . . . . . . . . . . . . . . . . . . . . . . 1 . . Damage (minor) 1 | . . . . . . . . . . . . . . . . . . . . . . . . . . . . 1 . . Siege Activations 79 | . . . . . . . . . 3 1 . . . 9 5 1 . 2 6 . . . 2 9 2 7 3 10 10 9 Total Turns 1861 | . . . . . . . . . 29 29 . . . 172 128 7 . 29 147 . . . 28 206 26 151 83 259 152 415 Longest Duration 219 | . . . . . . . . . 13 29 . . . 51 66 7 . 21 55 . . . 17 64 18 48 56 63 32 219 Robots Corrupted . | . . . . . . . . . . . . . . . . . . . . . . . . . . . . . . . Combat Hostiles . | . . . . . . . . . . . . . . . . . . . . . . . . . . . . . . . Parts Fried 12 | 1 . . 7 . . . . . 2 . . . . . . . . 2 . . . . . . . . . . . . Impact Corruptions 7 | . . . 7 . . . . . . . . . . . . . . . . . . . . . . . . . . . Robots Melted 17 | . 1 2 2 . . . . . . . . . . . . . . . 1 . . . . 1 . 2 1 2 2 3 Combat Hostiles 15 | . 1 2 2 . . . . . . . . . . . . . . . 1 . . . . 1 . 1 . 2 2 3 Parts Melted 82 | . 5 18 6 . . . . 1 1 . . . . 2 2 . . . 7 . . . . 7 2 5 1 8 9 8 Heat Transferred 31352 | 383 2035 4218 4107 296 . 703 . 74 248 148 . . 148 1776 777 74 185 296 1604 . . . 222 2479 296 2294 1591 3330 1998 2070 Parts Sabotaged . | . . . . . . . . . . . . . . . . . . . . . . . . . . . . . . . Parts Stolen . | . . . . . . . . . . . . . . . . . . . . . . . . . . . . . . . Parts Stripped . | . . . . . . . . . . . . . . . . . . . . . . . . . . . . . . . Power Chain Reactions 3 | 2 . . . . . . . . 1 . . . . . . . . . . . . . . . . . . . . . Missiles Intercepted . | . . . . . . . . . . . . . . . . . . . . . . . . . . . . . . . Alert | -11 -10 -9 -8 -7 -7 -7 -7 -6 -6 -6 -6 -6 -5 -5 -5 -5 -5 -5 -4 -4 -4 -4 -3 -3 -3 -2 -2 -2 -1 -1 ------- Run | Scr Mat Mat Mat Fac Low Low Dat Pro Fac Low Low Zio Pro Fac Ext Cet Arc Hub Fac Upp Upp Zhi Pro Res Tes Res Qua Sec Acc Com Peak Influence 663 | 15 211 468 533 238 . . . . 613 . . . . 213 247 502 291 448 613 . . . . 300 139 663 279 444 425 414 Initial 219 | . 9 20 166 207 . . . . 38 . . . . . 76 26 112 101 219 . . . . 27 53 9 71 8 21 . Average 169 | 6 62 215 298 168 . . . . 205 . . . . 78 98 253 240 137 293 . . . . 119 43 188 78 118 151 255 Maximum Alert Level 3 | . 1 2 2 1 . . . . 2 . . . . 1 1 2 1 2 2 . . . . 1 . 2 1 2 2 3 Low Security (%) 62 | 100 87 42 33 35 . . . . 67 . . . . 90 85 54 16 98 31 . . . . 77 100 68 91 73 69 14 Level 1 24 | . 12 54 30 64 . . . . . . . . . 9 14 11 83 . 24 . . . . 22 . 3 8 20 26 61 Level 2 12 | . . 3 36 . . . . . 32 . . . . . . 34 . 1 44 . . . . . . 28 . 5 4 15 Level 3 . | . . . . . . . . . . . . . . . . . . . . . . . . . . . . . . 7 Level 4 . | . . . . . . . . . . . . . . . . . . . . . . . . . . . . . . . Level 5 . | . . . . . . . . . . . . . . . . . . . . . . . . . . . . . . . High Security . | . . . . . . . . . . . . . . . . . . . . . . . . . . . . . . . Max Security . | . . . . . . . . . . . . . . . . . . . . . . . . . . . . . . . Squads Dispatched 59 | . . 4 3 2 . 1 . . 7 . . . . 4 1 . . 3 1 . . . . 5 3 4 4 8 6 3 Investigation 5 | . . 2 1 1 . . . . 1 . . . . . . . . . . . . . . . . . . . . . Extermination 23 | . . . . . . . . . 1 . . . . 1 . . . . 1 . . . . 2 2 2 3 5 4 2 Reinforcement 29 | . . 2 1 1 . . . . 5 . . . . 3 1 . . 3 . . . . . 3 1 2 1 3 2 1 Assault 2 | . . . 1 . . 1 . . . . . . . . . . . . . . . . . . . . . . . . Garrison . | . . . . . . . . . . . . . . . . . . . . . . . . . . . . . . . Intercept . | . . . . . . . . . . . . . . . . . . . . . . . . . . . . . . . Construction Impeded 4 | . . . . . . . . . . . . . . 1 1 . . 1 . . . . . . 1 . . . . . Haulers Reinforced 4 | . . . . . . . . . 1 . . . . 1 . . . . . . . . . . . . . . 2 . Active Scanning Responses . | . . . . . . . . . . . . . . . . . . . . . . . . . . . . . . . Cargo Convoy Interrupts 1 | . . . . . . . . . 1 . . . . . . . . . . . . . . . . . . . . . Stealth | -11 -10 -9 -8 -7 -7 -7 -7 -6 -6 -6 -6 -6 -5 -5 -5 -5 -5 -5 -4 -4 -4 -4 -3 -3 -3 -2 -2 -2 -1 -1 --------- Run | Scr Mat Mat Mat Fac Low Low Dat Pro Fac Low Low Zio Pro Fac Ext Cet Arc Hub Fac Upp Upp Zhi Pro Res Tes Res Qua Sec Acc Com Distress Signals 55 | . 1 2 7 . . . . . . . . . . 1 1 2 . . 2 . . . . . . 2 1 1 1 34 Communications Jammed 121 | . . . 16 . . . . . 4 . . . . 1 . . . 4 34 . . . . 15 . 12 . 35 . . Distress Signals 83 | . . . 10 . . . . . 4 . . . . . . . . . 30 . . . . . . 4 . 35 . . Times Spotted 506 | . 17 47 58 6 . 20 . 3 13 10 . . 5 26 26 10 12 7 20 . . . 6 24 8 21 19 49 29 70 Peak Tracking Total 20 | . 4 4 6 1 . 4 . 2 4 4 . . 4 5 5 5 4 3 7 . . . 4 6 2 5 5 6 4 20 Tactical Retreats 28 | . 2 3 5 . . 1 . . 1 . . . . . . . . . 1 . . . . 3 . 2 2 1 1 6 Traps | -11 -10 -9 -8 -7 -7 -7 -7 -6 -6 -6 -6 -6 -5 -5 -5 -5 -5 -5 -4 -4 -4 -4 -3 -3 -3 -2 -2 -2 -1 -1 ------- Run | Scr Mat Mat Mat Fac Low Low Dat Pro Fac Low Low Zio Pro Fac Ext Cet Arc Hub Fac Upp Upp Zhi Pro Res Tes Res Qua Sec Acc Com Traps Triggered 17 | . 2 3 2 2 . . . . . . . . . . . . . 1 4 . . . . . . . 1 1 1 . Indirectly . | . . . . . . . . . . . . . . . . . . . . . . . . . . . . . . . Trap Hack Attempts . | . . . . . . . . . . . . . . . . . . . . . . . . . . . . . . . Triggered . | . . . . . . . . . . . . . . . . . . . . . . . . . . . . . . . Disarmed . | . . . . . . . . . . . . . . . . . . . . . . . . . . . . . . . Reprogrammed . | . . . . . . . . . . . . . . . . . . . . . . . . . . . . . . . Reused . | . . . . . . . . . . . . . . . . . . . . . . . . . . . . . . . Traps Extracted . | . . . . . . . . . . . . . . . . . . . . . . . . . . . . . . . Installed . | . . . . . . . . . . . . . . . . . . . . . . . . . . . . . . . Triggered 3 | . . . . . . . . . 2 . . . . . . . . . . . . . . . . . . . . 1 Machines | -11 -10 -9 -8 -7 -7 -7 -7 -6 -6 -6 -6 -6 -5 -5 -5 -5 -5 -5 -4 -4 -4 -4 -3 -3 -3 -2 -2 -2 -1 -1 ---------- Run | Scr Mat Mat Mat Fac Low Low Dat Pro Fac Low Low Zio Pro Fac Ext Cet Arc Hub Fac Upp Upp Zhi Pro Res Tes Res Qua Sec Acc Com Machines Disabled 55 | . . 3 1 1 . 1 . . 2 . . . . . 1 2 2 8 4 . . . . 1 2 1 8 14 1 3 Max in Single Turn 8 | . . 1 1 1 . 1 . . 1 . . . . . 1 . 1 8 4 . . . . 1 1 1 1 2 1 2 Garrison Access 4 | . . . . . . . . . 1 . . . . . . . . . 1 . . . . 1 . . . 1 . . Phase Generator 1 | . . . . . . . . . . . . . . . . . . . . . . . . . . . . . . 1 Network Hub 1 | . . . . . . . . . . . . . . . . . . 1 . . . . . . . . . . . . Machines Sabotaged . | . . . . . . . . . . . . . . . . . . . . . . . . . . . . . . . Garrisons Compromised 1 | . . . . . . . . . 1 . . . . . . . . . . . . . . . . . . . . . Overloaded Fab Kills . | . . . . . . . . . . . . . . . . . . . . . . . . . . . . . . . Fab Network Shutdowns 2 | . . . . . . . . . . . . . . . . . . . 1 . . . . . . 1 . . . . Hacking | -11 -10 -9 -8 -7 -7 -7 -7 -6 -6 -6 -6 -6 -5 -5 -5 -5 -5 -5 -4 -4 -4 -4 -3 -3 -3 -2 -2 -2 -1 -1 --------- Run | Scr Mat Mat Mat Fac Low Low Dat Pro Fac Low Low Zio Pro Fac Ext Cet Arc Hub Fac Upp Upp Zhi Pro Res Tes Res Qua Sec Acc Com Machines Accessed 114 | . 7 8 6 2 . . 4 . 7 . 1 . . 8 4 . . . 9 1 . 6 . 5 6 8 11 11 6 4 Terminals 72 | . 6 3 3 1 . . . . 4 . 1 . . 5 4 . . . 5 . . . . 2 5 6 9 9 5 4 Fabricators 7 | . . . . . . . . . 1 . . . . 2 . . . . 1 . . . . . 1 1 . . 1 . Repair Stations 6 | . . 2 1 . . . . . . . . . . . . . . . 1 . . . . 1 . . 1 . . . Recycling Units 7 | . 1 1 1 1 . . . . 1 . . . . . . . . . 1 . . . . . . 1 . . . . Scanalyzers 7 | . . 2 1 . . . . . . . . . . 1 . . . . . . . . . 1 . . 1 1 . . Garrison Access 4 | . . . . . . . . . 1 . . . . . . . . . 1 . . . . 1 . . . 1 . . Total Hacks 456 | . 27 28 21 4 . . 23 . 20 . 1 . . 31 14 . . . 54 1 . 19 . 29 25 35 57 36 21 10 Successful 325 | . 14 22 17 2 . . 23 . 9 . 1 . . 22 6 . . . 32 1 . 19 . 23 20 21 42 28 15 8 Failed 128 | . 12 6 4 2 . . . . 11 . . . . 9 8 . . . 21 . . . . 6 5 14 15 8 5 2 Catastrophic 14 | . 3 . 1 2 . . . . 1 . . . . . 2 . . . 2 . . . . . . 2 . . 1 . Database Lockouts 3 | . 1 . . . . . . . . . . . . . . . . . 1 . . . . . . . . . 1 . Manual 174 | . 14 5 8 3 . . . . 9 . . . . 5 9 1 . . 26 . . . . 13 14 18 18 11 15 5 Terminals 284 | . 25 7 9 1 . . . . 13 . 1 . . 17 14 . . . 34 . . . . 15 15 30 41 33 19 10 Fabricators 37 | . . . . . . . . . 3 . . . . 7 . . . . 12 . . . . . 10 3 . . 2 . Repair Stations 19 | . . 4 2 . . . . . . . . . . . . . . . 4 . . . . 5 . . 4 . . . Recycling Units 17 | . 2 4 2 3 . . . . 2 . . . . . . . . . 2 . . . . . . 2 . . . . Scanalyzers 50 | . . 13 8 . . . . . . . . . . 7 . . . . . . . . . 8 . . 12 2 . . Garrison Access 6 | . . . . . . . . . 2 . . . . . . . . . 2 . . . . 1 . . . 1 . . Terminal Hacks 166 | . 8 2 2 . . . 23 . 3 . 1 . . 8 6 . . . 12 1 . 19 . 7 8 13 21 17 10 5 Record 26 | . . . . . . . 11 . . . 1 . . . 1 . . . . . . 7 . . . . 5 1 . . Part Schematic 12 | . . . . . . . 5 . . . . . . . . . . . 2 . . 4 . 1 . . . . . . Robot Schematic 4 | . . . . . . . 4 . . . . . . . . . . . . . . . . . . . . . . . Robot Analysis 6 | . . . . . . . . . . . . . . 1 1 . . . . . . 4 . . . . . . . . Prototype ID Bank 27 | . 5 1 . . . . 3 . 1 . . . . 2 1 . . . 1 . . 4 . . 1 2 3 . 1 2 Open Door 8 | . . . . . . . . . . . . . . 1 . . . . . 1 . . . . . 1 . 4 . 1 Level Access Points 1 | . . . . . . . . . . . . . . . . . . . . . . . . . 1 . . . . . Branch Access Points 5 | . . . . . . . . . 1 . . . . . . . . . 1 . . . . 1 . 1 . . 1 . Machine Index 3 | . . . . . . . . . . . . . . 1 . . . . . . . . . . . . 1 . . 1 Terminal Index 4 | . . . . . . . . . . . . . . . . . . . 1 . . . . . . 1 1 1 . . Fabricator Index 1 | . . . . . . . . . . . . . . . . . . . . . . . . . . 1 . . . . Scanalyzer Index 1 | . . . . . . . . . . . . . . . . . . . . . . . . . . . . 1 . . Alert Level 4 | . 1 . . . . . . . . . . . . . . . . . . . . . . 1 . . 1 1 . . Unreport Threat 41 | . 1 1 1 . . . . . 1 . . . . 2 3 . . . 5 . . . . 3 1 4 4 7 7 1 Locate Traps 13 | . 1 . 1 . . . . . . . . . . 1 . . . . 2 . . . . . 2 2 2 2 . . Recall Extermination 3 | . . . . . . . . . . . . . . . . . . . . . . . . . 1 . 2 . . . Recall Reinforcements 1 | . . . . . . . . . . . . . . . . . . . . . . . . . . 1 . . . . Zone Layout 6 | . . . . . . . . . . . . . . . . . . . . . . . . 1 2 . 2 . 1 . Fabricator Hacks 22 | . . . . . . . . . 1 . . . . 6 . . . . 7 . . . . . 4 2 . . 2 . Network Status 1 | . . . . . . . . . . . . . . . . . . . 1 . . . . . . . . . . . Load Schematic 9 | . . . . . . . . . . . . . . 3 . . . . 2 . . . . . 2 1 . . 1 . Build 12 | . . . . . . . . . 1 . . . . 3 . . . . 4 . . . . . 2 1 . . 1 . Repair Station Hacks 16 | . . 3 2 . . . . . . . . . . . . . . . 4 . . . . 4 . . 3 . . . Scan Component 9 | . . 2 1 . . . . . . . . . . . . . . . 2 . . . . 2 . . 2 . . . Repair 7 | . . 1 1 . . . . . . . . . . . . . . . 2 . . . . 2 . . 1 . . . Recycling Unit Hacks 6 | . 1 1 1 1 . . . . . . . . . . . . . . 1 . . . . . . 1 . . . . Retrieve Components 6 | . 1 1 1 1 . . . . . . . . . . . . . . 1 . . . . . . 1 . . . . Scanalyzer 46 | . . 12 8 . . . . . . . . . . 5 . . . . . . . . . 7 . . 12 2 . . Insert Component 20 | . . 6 3 . . . . . . . . . . 2 . . . . . . . . . 3 . . 4 2 . . Analyze 26 | . . 6 5 . . . . . . . . . . 3 . . . . . . . . . 4 . . 8 . . . Garrison Access Hacks 4 | . . . . . . . . . 1 . . . . . . . . . 1 . . . . 1 . . . 1 . . Seal Access 4 | . . . . . . . . . 1 . . . . . . . . . 1 . . . . 1 . . . 1 . . Unauthorized Hacks 65 | . 5 4 4 1 . . . . 4 . . . . 3 . . . . 7 . . . . 4 8 5 6 8 3 3 Terminals 55 | . 4 2 4 . . . . . 3 . . . . 3 . . . . 4 . . . . 4 7 4 6 8 3 3 Track 19 | . 1 . 2 . . . . . . . . . . 1 . . . . 2 . . . . 1 4 2 2 4 . . Assimilate 5 | . . . . . . . . . 1 . . . . . . . . . . . . . . . 1 . 1 1 1 . Botnet 28 | . 2 2 2 . . . . . 2 . . . . 2 . . . . 2 . . . . 2 2 2 3 3 2 2 Operators 3 | . 1 . . . . . . . . . . . . . . . . . . . . . . 1 . . . . . 1 Fabricators 4 | . . . . . . . . . 1 . . . . . . . . . 2 . . . . . 1 . . . . . Prioritize 1 | . . . . . . . . . . . . . . . . . . . 1 . . . . . . . . . . . Siphon 3 | . . . . . . . . . 1 . . . . . . . . . 1 . . . . . 1 . . . . . Repair Stations 1 | . . 1 . . . . . . . . . . . . . . . . . . . . . . . . . . . . Mechanics 1 | . . 1 . . . . . . . . . . . . . . . . . . . . . . . . . . . . Recycling Units 5 | . 1 1 . 1 . . . . . . . . . . . . . . 1 . . . . . . 1 . . . . Mask 5 | . 1 1 . 1 . . . . . . . . . . . . . . 1 . . . . . . 1 . . . . Scanalyzers . | . . . . . . . . . . . . . . . . . . . . . . . . . . . . . . . Garrison Access . | . . . . . . . . . . . . . . . . . . . . . . . . . . . . . . . Data Cores Recovered 3 | . . . . . . . . . . . . . . . . . . . . . . . . 1 . . . 1 . 1 Used 1 | . . . . . . . . . . . . . . . . . . . . . . . . . . . . . . 1 Hacking Detections 77 | . 6 7 6 2 . . . . 6 . . . . 7 4 . . . 8 . . . . 3 2 6 7 6 3 4 Full Trace Events 2 | . 1 . . . . . . . 1 . . . . . . . . . . . . . . . . . . . . . Feedback Events . | . . . . . . . . . . . . . . . . . . . . . . . . . . . . . . . Feedback Blocked . | . . . . . . . . . . . . . . . . . . . . . . . . . . . . . . . Robot Schematics Acquired 4 | . . . . . . . 4 . . . . . . . . . . . . . . . . . . . . . . . Robots Built . | . . . . . . . . . . . . . . . . . . . . . . . . . . . . . . . Matter . | . . . . . . . . . . . . . . . . . . . . . . . . . . . . . . . Time . | . . . . . . . . . . . . . . . . . . . . . . . . . . . . . . . Total Robot Build Rating . | . . . . . . . . . . . . . . . . . . . . . . . . . . . . . . . Part Schematics Acquired 29 | . . 5 3 . . . 5 . . . . . . 2 . . . . 2 . . 4 . 4 . . 4 . . . Parts Built 16 | . . . . . . . . . 2 . . . . 5 . . . . 4 . . . . . 3 1 . . 1 . Matter 2917 | . . . . . . . . . 234 . . . . 614 . . . . 793 . . . . . 541 351 . . 384 . Time 718 | . . . . . . . . . 58 . . . . 152 . . . . 151 . . . . . 162 93 . . 102 . Total Part Build Rating 110 | . . . . . . . . . 14 . . . . 31 . . . . 25 . . . . . 25 7 . . 8 . Parts Repaired 7 | . . 1 1 . . . . . . . . . . . . . . . 2 . . . . 2 . . 1 . . . Time 274 | . . 26 32 . . . . . . . . . . . . . . . 108 . . . . 72 . . 36 . . . Parts Recycled . | . . . . . . . . . . . . . . . . . . . . . . . . . . . . . . . Recycled Matter . | . . . . . . . . . . . . . . . . . . . . . . . . . . . . . . . Retrieved Matter . | . . . . . . . . . . . . . . . . . . . . . . . . . . . . . . . Retrieved Components 20 | . 5 . 10 3 . . . . . . . . . . . . . . 1 . . . . . . 1 . . . . Parts Scanalyzed 17 | . . 6 3 . . . . . . . . . . 2 . . . . . . . . . 3 . . 3 . . . Part Schematics Acquired 17 | . . 5 3 . . . . . . . . . . 2 . . . . . . . . . 3 . . 4 . . . Parts Damaged . | . . . . . . . . . . . . . . . . . . . . . . . . . . . . . . . Bothacking | -11 -10 -9 -8 -7 -7 -7 -7 -6 -6 -6 -6 -6 -5 -5 -5 -5 -5 -5 -4 -4 -4 -4 -3 -3 -3 -2 -2 -2 -1 -1 ------------ Run | Scr Mat Mat Mat Fac Low Low Dat Pro Fac Low Low Zio Pro Fac Ext Cet Arc Hub Fac Upp Upp Zhi Pro Res Tes Res Qua Sec Acc Com Used RIF Installer . | . . . . . . . . . . . . . . . . . . . . . . . . . . . . . . . Robots Hacked . | . . . . . . . . . . . . . . . . . . . . . . . . . . . . . . . Non-combat . | . . . . . . . . . . . . . . . . . . . . . . . . . . . . . . . Combat . | . . . . . . . . . . . . . . . . . . . . . . . . . . . . . . . Robot Hacks Applied . | . . . . . . . . . . . . . . . . . . . . . . . . . . . . . . . Relay Couplers Released . | . . . . . . . . . . . . . . . . . . . . . . . . . . . . . . . Robots Rewired 15 | . . . . . . . . . . . . . . . 15 . . . . . . . . . . . . . . . Allies Hacked 1 | . . . . . . . . . . . . . . . . . . . . . . . . . . . . . 1 . Hacks Repelled . | . . . . . . . . . . . . . . . . . . . . . . . . . . . . . . . Allies | -11 -10 -9 -8 -7 -7 -7 -7 -6 -6 -6 -6 -6 -5 -5 -5 -5 -5 -5 -4 -4 -4 -4 -3 -3 -3 -2 -2 -2 -1 -1 -------- Run | Scr Mat Mat Mat Fac Low Low Dat Pro Fac Low Low Zio Pro Fac Ext Cet Arc Hub Fac Upp Upp Zhi Pro Res Tes Res Qua Sec Acc Com Total Allies 47 | . . . . 3 . . . 1 . . . . . . 25 5 . . 3 . . . . . 1 . . . 1 8 Largest Group 11 | . . . . 3 3 3 . 1 1 . . . . . 11 11 7 4 3 . . . . . 1 1 . . 1 8 Highest-Rated Group 646 | . . . . 93 93 93 . 95 95 . . . . . 433 646 401 255 138 . . . . . 45 45 . . 45 116 Highest-Rated Ally 156 | . . . . 31 31 31 . 95 95 . . . . . 156 156 95 95 46 . . . . . 45 45 . . 45 45 Total Orders . | . . . . . . . . . . . . . . . . . . . . . . . . . . . . . . . Ally Attacks 352 | . . . . 8 . 23 . 10 10 . . . . . 101 109 31 21 17 . . . . . . . . . . 22 Total Damage 8698 | . . . . 142 . 358 . 371 372 . . . . . 2162 2772 955 546 488 . . . . . . . . . . 532 Kills 41 | . . . . 1 . 4 . 1 2 . . . . . 11 15 3 1 2 . . . . . . . . . . 1 Allies Corrupted 1 | . . . . . . . . . . . . . . . . . . . . . . . . . . . . . . 1 Allies Melted 1 | . . . . . . . . . 1 . . . . . . . . . . . . . . . . . . . . . Intel | -11 -10 -9 -8 -7 -7 -7 -7 -6 -6 -6 -6 -6 -5 -5 -5 -5 -5 -5 -4 -4 -4 -4 -3 -3 -3 -2 -2 -2 -1 -1 ------- Run | Scr Mat Mat Mat Fac Low Low Dat Pro Fac Low Low Zio Pro Fac Ext Cet Arc Hub Fac Upp Upp Zhi Pro Res Tes Res Qua Sec Acc Com Robot Analysis Total 6 | . . . . . . . . . . . . . . 1 1 . . . . . . 4 . . . . . . . . Derelict Logs Recovered 11 | . . . . . . 1 . . . 2 1 2 2 . . . . . . 1 2 . . . . . . . . . Drone Launches . | . . . . . . . . . . . . . . . . . . . . . . . . . . . . . . . Drone Recoveries . | . . . . . . . . . . . . . . . . . . . . . . . . . . . . . . . Exploration | -11 -10 -9 -8 -7 -7 -7 -7 -6 -6 -6 -6 -6 -5 -5 -5 -5 -5 -5 -4 -4 -4 -4 -3 -3 -3 -2 -2 -2 -1 -1 ------------- Run | Scr Mat Mat Mat Fac Low Low Dat Pro Fac Low Low Zio Pro Fac Ext Cet Arc Hub Fac Upp Upp Zhi Pro Res Tes Res Qua Sec Acc Com Turns Passed 30903 | 87 1123 1787 2484 622 409 1009 118 770 1095 1014 700 1442 625 1376 1363 426 271 212 1596 464 604 524 566 1108 932 1274 1457 2109 1966 1370 Spaces Moved 15551 | 40 686 926 1144 404 282 560 77 445 555 547 426 888 367 594 601 208 116 87 743 281 339 225 295 401 493 550 753 940 1033 545 Core 97 | . . . . . . . . . . . . . . . . . . . . . . . . . . . . . . 97 Treads 10455 | . 18 . 2 . . . . . 100 547 426 888 367 594 601 208 116 87 743 281 339 225 295 401 493 550 753 940 1033 448 Legs 88 | 40 48 . . . . . . . . . . . . . . . . . . . . . . . . . . . . . Wheels 4911 | . 620 926 1142 404 282 560 77 445 455 . . . . . . . . . . . . . . . . . . . . . Hover . | . . . . . . . . . . . . . . . . . . . . . . . . . . . . . . . Flight . | . . . . . . . . . . . . . . . . . . . . . . . . . . . . . . . Fastest Speed 50 | 120 95 130 135 135 135 135 155 155 135 160 160 160 160 160 160 160 160 160 160 160 160 160 160 155 150 150 150 150 146 50 Average Speed 153 | 120 124 142 150 135 135 144 155 155 148 160 160 160 160 165 160 160 160 160 160 160 172 213 160 157 163 163 151 159 146 128 Slowest Speed 270 | 120 160 155 265 135 150 155 155 155 260 160 160 160 160 263 260 160 160 160 160 160 270 270 160 270 252 252 155 252 146 146 Overloaded Moves . | . . . . . . . . . . . . . . . . . . . . . . . . . . . . . . . Propulsion Burnouts . | . . . . . . . . . . . . . . . . . . . . . . . . . . . . . . . Robots Hopped . | . . . . . . . . . . . . . . . . . . . . . . . . . . . . . . . Cave-ins Triggered . | . . . . . . . . . . . . . . . . . . . . . . . . . . . . . . . Teleports 2 | . . . . . . . . . . . . . . . . . . . . . . 1 . . . . . 1 . . Exploration Rate (%) 51 | 4 96 65 81 15 50 81 68 63 12 72 74 85 68 17 76 62 74 14 20 52 57 62 57 9 53 17 75 62 26 27 Regions Visited 30 Branch Regions 20 Pre-discovered Areas 7 | . . . . . . . 1 . . . . 2 . . . . . . . . 1 3 . . . . . . . . Known Exits Taken 26 | . . . . 1 1 1 1 1 1 1 1 1 1 1 1 1 1 1 1 1 1 1 1 1 1 1 1 1 1 . Unknown Exits Taken 4 | 1 1 1 1 . . . . . . . . . . . . . . . . . . . . . . . . . . . Scrap Searched 23 | . . . . . 3 3 . . . 3 2 4 . . . . . . . 3 2 . 3 . . . . . . . Spaces Dug 138 | . 1 7 1 3 2 5 . 2 13 14 2 . . 12 . . . . 7 . 2 . 9 6 5 10 11 11 12 3 Terrain Destroyed 709 | . 1 26 14 3 2 35 . 2 17 44 2 . 5 23 1 2 . 171 53 . 2 . 31 15 8 19 22 31 56 124 Melee 38 | . 1 . 1 3 2 1 . 2 11 3 2 . . 3 . . . . 7 . 1 . . 1 . . . . . . Projectile 201 | . . 3 13 . . . . . 2 1 . . . 18 1 2 . 1 7 . 1 . 10 14 5 15 22 26 28 32 AOE 403 | . . 23 . . . 34 . . 3 40 . . 5 . . . . 170 39 . . . 21 . . . . . . 68 Terrain Rammed . | . . . . . . . . . . . . . . . . . . . . . . . . . . . . . . . Walls Destroyed . | . . . . . . . . . . . . . . . . . . . . . . . . . . . . . . . Machines Disabled . | . . . . . . . . . . . . . . . . . . . . . . . . . . . . . . . Actions | -11 -10 -9 -8 -7 -7 -7 -7 -6 -6 -6 -6 -6 -5 -5 -5 -5 -5 -5 -4 -4 -4 -4 -3 -3 -3 -2 -2 -2 -1 -1 --------- Run | Scr Mat Mat Mat Fac Low Low Dat Pro Fac Low Low Zio Pro Fac Ext Cet Arc Hub Fac Upp Upp Zhi Pro Res Tes Res Qua Sec Acc Com Total 20231 | 54 852 1214 1597 453 302 701 76 509 755 629 442 915 391 847 882 283 159 136 1046 297 354 254 365 718 592 818 977 1367 1365 881 Wait 1854 | . 68 86 141 7 2 69 . 45 95 33 3 9 14 94 81 29 5 23 172 13 6 1 47 180 37 134 75 149 152 84 Move 15520 | 39 685 925 1143 403 281 559 76 444 554 546 425 887 366 593 600 207 115 86 742 280 338 224 294 400 492 549 752 939 1032 544 Hop . | . . . . . . . . . . . . . . . . . . . . . . . . . . . . . . . Pick Up 256 | 1 22 27 29 5 1 6 . 1 14 3 2 5 . 17 10 5 4 3 14 1 . 4 2 10 5 13 12 28 6 6 Fast Attach 178 | 1 2 5 12 . 4 . . . 7 . 1 3 . 5 5 7 . . 8 . 2 5 . 4 10 6 18 38 19 16 Attach 151 | . 7 7 15 3 1 1 . 2 6 2 1 1 . 12 4 1 2 3 7 . . 1 . 8 2 9 12 20 5 19 Detach 46 | . . 1 2 . 1 . . . 1 . 1 1 . 3 1 . . . 1 . . . . 3 1 1 4 9 7 9 Swap 516 | 1 7 39 47 12 6 17 . 11 23 18 3 1 5 35 18 7 5 6 36 2 4 2 8 33 14 31 21 38 40 26 Drop 361 | . 9 31 46 6 3 8 . . 20 1 4 8 . 15 14 15 3 4 17 1 2 7 2 9 16 16 23 42 23 16 Fire 1133 | 12 51 93 128 12 . 38 . 4 24 23 . . 6 67 60 5 7 10 36 . 1 . 12 70 15 59 60 104 81 155 Melee 124 | . 1 . 34 5 3 3 . 2 11 3 2 . . 3 . 7 18 1 13 . 1 10 . 1 . . . . . 6 Ram . | . . . . . . . . . . . . . . . . . . . . . . . . . . . . . . . Kick . | . . . . . . . . . . . . . . . . . . . . . . . . . . . . . . . Crush 3 | . . . . . . . . . . . . . . 3 . . . . . . . . . . . . . . . . Escape Stasis . | . . . . . . . . . . . . . . . . . . . . . . . . . . . . . . . Rewire 89 | . . . . . . . . . . . . . . . 89 . . . . . . . . . . . . . . . Trap . | . . . . . . . . . . . . . . . . . . . . . . . . . . . . . . . Miscellaneous . | . . . . . . . . . . . . . . . . . . . . . . . . . . . . . . . Route ------- -11/Scrapyard -10/Materials (discovered 4 exits: *Mat x3 / [*Min]) -9/Materials (discovered 3 exits: *Mat x2 / [*Sto]) -8/Materials (discovered 3 exits: *Fac x3) -7/Factory -7/Lower Caves -7/Lower Caves (discovered 2 exits: *Fac / *Dat) -7/Data Miner -6/Proximity Caves -6/Factory (discovered 2 exits: *Low x2) -6/Lower Caves -6/Lower Caves -6/Zion -5/Proximity Caves -5/Factory (discovered 5 exits: *Fac x4 / *Ext) -5/Extension (discovered 2 exits: *Fac / *Cet) -5/Cetus (discovered 2 exits: *Fac / *Arc) -5/Archives (discovered 2 exits: *Fac / *Hub) -5/Hub_04(d) -4/Factory (discovered 3 exits: *Upp x2 / Arm) -4/Upper Caves -4/Upper Caves -4/Zhirov -3/Proximity Caves -3/Research (discovered 4 exits: Res x2 / *Tes x2) -3/Testing -2/Research (discovered 2 exits: *Qua x2) -2/Quarantine (discovered 2 exits: *Acc / *Sec) -2/Section 7 -1/Access -1/Command To Fleet Rendezvous History --------- Turn | Location | Event 1 | -11/Scrapyard | Discovered new exit (range 3) 88 | -11/Scrapyard | Entered Materials 311 | -10/Materials | Build established: Mutant 418 | -10/Materials | Discovered new exit (range 9) 559 | -10/Materials | Central database locked down 597 | -10/Materials | Discovered new exit (range 16) 727 | -10/Materials | Discovered new exit (range 14) 980 | -10/Materials | Discovered new exit (range 8) 1211 | -10/Materials | Entered another Materials area 1211 | -9/Materials | Evolved 2 slots: Propulsion x1, Utility x1 1542 | -9/Materials | Discovered new exit (range 7) 1553 | -9/Materials | Discovered new exit (range 11) 2465 | -9/Materials | Repaired Lgt. Treads 2958 | -9/Materials | Discovered new exit (range 15) 2998 | -9/Materials | Entered another Materials area 2998 | -8/Materials | Evolved 2 slots: Propulsion x1, Utility x1 3205 | -8/Materials | Lost 4 parts (2n2u) 3713 | -8/Materials | Discovered new exit (range 12) 3768 | -8/Materials | Lost 3 parts (1n1u1w) 3852 | -8/Materials | Build established: Scavenger-Mutant 3878 | -8/Materials | Core integrity fell below 50% 4090 | -8/Materials | Discovered new exit (range 3) 4598 | -8/Materials | First assault squad dispatched 4615 | -8/Materials | Repaired Hrd. Light Armor Plating 5153 | -8/Materials | Discovered new exit (range 8) 5418 | -8/Materials | Build established: Mutant 5482 | -8/Materials | Entered Factory 5482 | -7/Factory | Evolved 2 slots: Utility x2 5788 | -7/Factory | Build established: Scavenger-Skirmisher 6010 | -7/Factory | Allied Derelicts emerged from ambush trap array 6074 | -7/Factory | Discovered new exit (range 13) 6099 | -7/Factory | Identified exit to Lower Caves 6104 | -7/Factory | Entered Lower Caves 6104 | -7/Lower Caves | Accompanied by 3 allies 6176 | -7/Lower Caves | Found Alien Artifact 6176 | -7/Lower Caves | Identified Core Expander 6176 | -7/Lower Caves | Installed Core Expander, added new Weapon slot 6309 | -7/Lower Caves | Encountered a Warlord checkpoint 6460 | -7/Lower Caves | Build established: Scavenger-Assassin 6484 | -7/Lower Caves | Discovered new exit (range 16) 6503 | -7/Lower Caves | Identified exit to Lower Caves 6513 | -7/Lower Caves | Entered another Lower Caves area 6513 | -7/Lower Caves | Accompanied by 3 allies 6604 | -7/Lower Caves | Discovered new exit (range 12) 6612 | -7/Lower Caves | Attracted the attention of an 0b10 checkpoint 6646 | -7/Lower Caves | Learned Factory interactive machine intel 6702 | -7/Lower Caves | Identified exit to Factory 6895 | -7/Lower Caves | Acquired the password to a Derelict Tinkerer's latest research 6977 | -7/Lower Caves | Build established: Scavenger-Skirmisher 7013 | -7/Lower Caves | Attracted the attention of an 0b10 outpost 7496 | -7/Lower Caves | Discovered new exit (range 10) 7514 | -7/Lower Caves | Identified exit to Data Miner 7522 | -7/Lower Caves | Entered Data Miner 7522 | -7/Data Miner | Discovered new exit (range 6) 7530 | -7/Data Miner | Identified exit to Proximity Caves 7552 | -7/Data Miner | Met Data Miner 7578 | -7/Data Miner | Learned location of Section 7 (-2) 7578 | -7/Data Miner | Acquired the access code to Warlord's prototype stash 7605 | -7/Data Miner | Received God Mode back door access code from Data Miner 7640 | -7/Data Miner | Entered Proximity Caves 7948 | -6/Proximity Caves | Build established: Scavenger-Assassin 7962 | -6/Proximity Caves | Escorted by Enhanced Grunt 8254 | -6/Proximity Caves | Build established: Scavenger-Skirmisher 8383 | -6/Proximity Caves | Discovered exit to Factory (range 6) 8410 | -6/Proximity Caves | Entered Factory 8410 | -6/Factory | Accompanied by 1 ally 8410 | -6/Factory | Evolved 2 slots: Utility x2 8411 | -6/Factory | Loaded intel: 46 interactive machine locations 8499 | -6/Factory | Identified exit to Lower Caves 8846 | -6/Factory | Found Prototype Device 8846 | -6/Factory | Identified Exp. Thermal Shield 9154 | -6/Factory | Cargo convoy interrupted 9167 | -6/Factory | Fabricated Imp. Heavy Treads (x2) 9505 | -6/Factory | Entered Lower Caves 9792 | -6/Lower Caves | Build established: Scavenger-Mutant 9793 | -6/Lower Caves | Learned 4 Factory zone layouts 9814 | -6/Lower Caves | Learned location of 1 exit from Factory 10502 | -6/Lower Caves | Discovered new exit (range 8) 10515 | -6/Lower Caves | Identified exit to Lower Caves 10519 | -6/Lower Caves | Entered another Lower Caves area 10544 | -6/Lower Caves | Encountered a Warlord checkpoint 10683 | -6/Lower Caves | Build established: Hacker-Skirmisher 11100 | -6/Lower Caves | Build established: Hacker-Assassin 11199 | -6/Lower Caves | Discovered new exit (range 5) 11205 | -6/Lower Caves | Identified exit to Zion 11219 | -6/Lower Caves | Entered Zion 11283 | -6/Zion | Discovered new exit (range 14) 11602 | -6/Zion | Learned location of 1 exit from Lower Caves 11643 | -6/Zion | Found Prototype Device 11643 | -6/Zion | Identified Bomb Factory No. 2 11705 | -6/Zion | Received a visual enhancement algorithm 12068 | -6/Zion | Given the Hacking Drone Bay 12139 | -6/Zion | Build established: Hacker-Mutant 12401 | -6/Zion | Learned location of Warlord (-5) 12660 | -6/Zion | Identified exit to Proximity Caves 12661 | -6/Zion | Entered Proximity Caves 12740 | -5/Proximity Caves | Learned 12 Factory zone layouts 12858 | -5/Proximity Caves | Attracted the attention of an 0b10 checkpoint 13060 | -5/Proximity Caves | Learned location of 1 exit from Factory 13176 | -5/Proximity Caves | Build established: Hacker-Skirmisher 13272 | -5/Proximity Caves | Discovered new exit (range 7) 13283 | -5/Proximity Caves | Identified exit to Factory 13286 | -5/Proximity Caves | Entered Factory 13286 | -5/Factory | Evolved 2 slots: Utility x2 13287 | -5/Factory | Identified exit to Extension 13288 | -5/Factory | Identified exit to Factory 13909 | -5/Factory | Fabricated Imp. Heavy Treads (x2) 14011 | -5/Factory | Lost 3 parts (2u1w) 14085 | -5/Factory | Fabricated Machine Analyzer? 14169 | -5/Factory | Fabricated Imp. Heavy Treads (x2) 14662 | -5/Factory | Entered Extension 14747 | -5/Extension | Rescued a captive Derelict 14752 | -5/Extension | Rescued a captive Derelict 14753 | -5/Extension | Rescued a captive Derelict 14788 | -5/Extension | Rescued a captive Derelict 14789 | -5/Extension | Rescued a captive Derelict 14811 | -5/Extension | Rescued a captive Derelict 15206 | -5/Extension | Build established: Commander-Tank 15338 | -5/Extension | Spotted B-75 Beast 15361 | -5/Extension | Spotted B-75 Beast 15371 | -5/Extension | Allies destroyed B-75 Beast 15413 | -5/Extension | Destroyed B-75 Beast 15573 | -5/Extension | Rescued a captive Derelict 15730 | -5/Extension | Build established: Scavenger-Tank 15821 | -5/Extension | Rescued A7 15927 | -5/Extension | Rescued a captive Derelict 15929 | -5/Extension | Rescued a captive Derelict 15993 | -5/Extension | Discovered exit to Factory (range 10) 15995 | -5/Extension | Discovered new exit (range 6) 16010 | -5/Extension | Identified exit to Cetus 16025 | -5/Extension | Entered Cetus 16025 | -5/Cetus | Accompanied by 11 allies (A7) 16030 | -5/Cetus | Acquired a Cetus Manufacturing Module code from A7 16047 | -5/Cetus | Spotted Cetus Guard 16047 | -5/Cetus | Spotted Cetus Guard 16048 | -5/Cetus | Allies destroyed Cetus Guard 16049 | -5/Cetus | Spotted Cetus Guard 16049 | -5/Cetus | Spotted Cetus Guard 16064 | -5/Cetus | Destroyed Cetus Guard 16064 | -5/Cetus | Allies destroyed Cetus Guard 16065 | -5/Cetus | Allies destroyed Cetus Guard 16160 | -5/Cetus | Started Cetus Manufacturing Module 16185 | -5/Cetus | Manufactured an Enhanced Grunt 16196 | -5/Cetus | Discovered new exit (range 15) 16210 | -5/Cetus | Manufactured an Enhanced Grunt 16227 | -5/Cetus | Spotted Cetus Guard 16227 | -5/Cetus | Spotted Cetus Guard 16230 | -5/Cetus | Spotted Cetus Guard 16233 | -5/Cetus | Spotted Cetus Guard 16235 | -5/Cetus | Manufactured an Enhanced Grunt 16237 | -5/Cetus | Allies destroyed Cetus Guard 16247 | -5/Cetus | Allies destroyed Cetus Guard 16248 | -5/Cetus | Allies destroyed Cetus Guard 16253 | -5/Cetus | Discovered exit to Factory (range 16) 16256 | -5/Cetus | Destroyed Cetus Guard 16260 | -5/Cetus | Manufactured an Enhanced Grunt 16285 | -5/Cetus | Manufactured an Enhanced Grunt 16338 | -5/Cetus | Met Revision 17 16395 | -5/Cetus | Identified exit to Archives 16420 | -5/Cetus | Destroyed A7 16424 | -5/Cetus | Extracted ID and sensor layout for unrecognized location from A7's data core 16451 | -5/Cetus | Entered Archives 16451 | -5/Archives | Accompanied by 7 allies 16567 | -5/Archives | Discovered new exit (range 15) 16601 | -5/Archives | Discovered exit to Factory (range 15) 16712 | -5/Archives | Identified exit to Hub_04(d) 16722 | -5/Archives | Entered Hub_04(d) 16722 | -5/Hub_04(d) | Accompanied by 4 allies 16849 | -5/Hub_04(d) | Discovered exit to Factory (range 7) 16931 | -5/Hub_04(d) | Network Hub disabled 16934 | -5/Hub_04(d) | Entered Factory 16934 | -4/Factory | Evolved 2 slots: Power x1, Utility x1 16968 | -4/Factory | Identified exit to Upper Caves 16968 | -4/Factory | Identified exit to Armory 17248 | -4/Factory | Fabricated Adv. Hacking Suite (x1) 17277 | -4/Factory | Fabricated Adv. Hacking Suite (x1) 17306 | -4/Factory | Fabricated Adv. Hacking Suite? 17370 | -4/Factory | Fabricated EM Disruption Field (x1) 17391 | -4/Factory | Build established: Hacker-Assassin 17507 | -4/Factory | Repaired Centrium Heavy Treads? 17532 | -4/Factory | Local fabrication network quarantined 17638 | -4/Factory | Repaired Centrium Medium Armor Plating? 17973 | -4/Factory | Allied Derelicts emerged from ambush trap array 18375 | -4/Factory | Central database locked down 18530 | -4/Factory | Entered Upper Caves 18545 | -4/Upper Caves | Learned 12 Research zone layouts 18597 | -4/Upper Caves | Spotted B-86 Titan 18765 | -4/Upper Caves | Build established: Hacker-Tank 18970 | -4/Upper Caves | Discovered new exit (range 15) 18992 | -4/Upper Caves | Identified exit to Upper Caves 18994 | -4/Upper Caves | Entered another Upper Caves area 19002 | -4/Upper Caves | Learned location of Testing (-3) 19114 | -4/Upper Caves | Encountered a Warlord checkpoint 19359 | -4/Upper Caves | Learned location of 1 exit from Research 19584 | -4/Upper Caves | Discovered new exit (range 5) 19595 | -4/Upper Caves | Identified exit to Zhirov 19598 | -4/Upper Caves | Entered Zhirov 19598 | -4/Zhirov | Discovered new exit (range 3) 19601 | -4/Zhirov | Identified exit to Proximity Caves 19647 | -4/Zhirov | Met Zhirov 19696 | -4/Zhirov | Learned location of Quarantine (-2) 19696 | -4/Zhirov | Learned location of Command (-1) 19755 | -4/Zhirov | Zhirov requested help retrieving the SGEMP Prototype 19778 | -4/Zhirov | Build established: Hacker-Assassin 19808 | -4/Zhirov | Found Alien Artifact 19808 | -4/Zhirov | Identified Integrated Dissipator 19808 | -4/Zhirov | Installed Integrated Dissipator, increased core heat dissipation (+20) 19993 | -4/Zhirov | Found Alien Artifact 19993 | -4/Zhirov | Identified Transdimensional Reconstructor 19993 | -4/Zhirov | Warped through subspace 20122 | -4/Zhirov | Entered Proximity Caves 20251 | -3/Proximity Caves | Build established: Hacker-Tank 20677 | -3/Proximity Caves | Discovered new exit (range 5) 20682 | -3/Proximity Caves | Identified exit to Research 20688 | -3/Proximity Caves | Entered Research 20688 | -3/Research | Evolved 2 slots: Propulsion x1, Utility x1 20689 | -3/Research | Identified exit to Research 20737 | -3/Research | Spotted B-86 Titan 21303 | -3/Research | Destroyed 7 combat bots 21443 | -3/Research | Identified exit to Testing 21630 | -3/Research | Repaired Centrium Medium Armor Plating 21666 | -3/Research | Repaired Centrium Heavy Treads 21796 | -3/Research | Entered Testing 21803 | -3/Testing | Spotted PL-YS3OGHNN8A 21896 | -3/Testing | Fabricated Biometal Heavy Treads (x2) 21998 | -3/Testing | Fabricated Imp. KE Penetrator (x1) 22224 | -3/Testing | Found Prototype Ballistic Cannon 22224 | -3/Testing | Identified Perforator 22296 | -3/Testing | Found Prototype Energy Cannon 22296 | -3/Testing | Identified Imp. Potential Cannon 22528 | -3/Testing | Build established: Hacker-Skirmisher 22728 | -3/Testing | Entered Research 22728 | -2/Research | Accompanied by 1 ally 22728 | -2/Research | Evolved 2 slots: Utility x1, Weapon x1 22873 | -2/Research | Found Prototype Processor 22979 | -2/Research | Identified exit to Quarantine 23395 | -2/Research | Found Unknown Device 23395 | -2/Research | Identified Antimissile System 23535 | -2/Research | Local fabrication network quarantined 23627 | -2/Research | Fabricated Imp. KE Penetrator (x1) 23732 | -2/Research | Spotted B-90 Cyclops 24002 | -2/Research | Entered Quarantine 24077 | -2/Quarantine | Found Alien Artifact 24077 | -2/Quarantine | Identified Phase Redirector 24396 | -2/Quarantine | Cryocooling Duct disabled 24411 | -2/Quarantine | Ambient heat levels rising (+20) 24411 | -2/Quarantine | Non-combat units ordered to evacuate 24568 | -2/Quarantine | Found Alien Artifact 24769 | -2/Quarantine | Found Alien Artifact 24802 | -2/Quarantine | Found Alien Artifact 24802 | -2/Quarantine | Identified Core Reset Matrix 24802 | -2/Quarantine | Identified Phase Armor 24802 | -2/Quarantine | Identified Subatomic Replicator 24802 | -2/Quarantine | Used Core Reset Matrix 24806 | -2/Quarantine | Detected hypermatrix surge 24806 | -2/Quarantine | Sensed 10 artifacts in vicinity 24864 | -2/Quarantine | Build established: Hacker-Mutant 24883 | -2/Quarantine | Found Core Cannon 25030 | -2/Quarantine | Discovered new exit (range 9) 25058 | -2/Quarantine | Found Hpw. Transdimensional Reconstructor 25068 | -2/Quarantine | Found Dimensional Node Initializer 25224 | -2/Quarantine | Repaired Centrium Medium Armor Plating 25347 | -2/Quarantine | Spotted Fortress 25421 | -2/Quarantine | Lost 3 parts (2u1w) 25450 | -2/Quarantine | Discovered new exit (range 6) 25456 | -2/Quarantine | Identified exit to Section 7 25459 | -2/Quarantine | Entered Section 7 25460 | -2/Section 7 | Sensed 21 artifacts in vicinity 25701 | -2/Section 7 | Spotted B-90 Cyclops 25827 | -2/Section 7 | Discovered new exit (range 3) 25828 | -2/Section 7 | Identified exit to Access 25830 | -2/Section 7 | Initialized slip node 25916 | -2/Section 7 | Found Integrated Mediator 25965 | -2/Section 7 | Spotted S7 Guard 25982 | -2/Section 7 | Installed Integrated Mediator, increased core attachment efficiency. 26063 | -2/Section 7 | Destroyed 9 combat bots 26293 | -2/Section 7 | Spotted B-90 Cyclops 26299 | -2/Section 7 | Destroyed B-90 Cyclops 26409 | -2/Section 7 | Spotted S7 Guard 26492 | -2/Section 7 | Build established: Hacker-Tank 26503 | -2/Section 7 | Destroyed S7 Guard 26532 | -2/Section 7 | Found Prototype Protection 26532 | -2/Section 7 | Identified Hvy. Regenerative Plating 26541 | -2/Section 7 | Lost 7 parts (1p2n4u) 26639 | -2/Section 7 | Used Subatomic Replicator to replicate Integrated Heat Negator 26641 | -2/Section 7 | Found Integrated Heat Negator 26641 | -2/Section 7 | Installed Integrated Heat Negator, increased core heat dissipation (+40) 26644 | -2/Section 7 | Installed Integrated Heat Negator, increased core heat dissipation (+40) 26941 | -2/Section 7 | Spotted Executioner 26942 | -2/Section 7 | Destroyed Executioner 26943 | -2/Section 7 | Spotted Executioner 26949 | -2/Section 7 | Destroyed Executioner 26965 | -2/Section 7 | Found Prototype Processor 26965 | -2/Section 7 | Identified Exp. Core Analyzer 26970 | -2/Section 7 | Found Prototype Processor 26970 | -2/Section 7 | Identified Exp. Targeting Computer 27094 | -2/Section 7 | Spotted B-99 Colossus 27199 | -2/Section 7 | Found Integrity Redistributor 27202 | -2/Section 7 | Found Integrity Redistributor 27205 | -2/Section 7 | Found Integrity Redistributor 27267 | -2/Section 7 | Found LRC Armor 27267 | -2/Section 7 | Installed LRC Armor, increased core integrity (+250) 27276 | -2/Section 7 | Found LRC Storage 27276 | -2/Section 7 | Installed LRC Storage, increased inventory capacity (+2) 27280 | -2/Section 7 | Found LRC Matter Compressor 27280 | -2/Section 7 | Installed LRC Matter Compressor, increased matter storage capacity (+125) 27414 | -2/Section 7 | Found Integrated Dissipator 27414 | -2/Section 7 | Installed Integrated Dissipator, increased core heat dissipation (+20) 27457 | -2/Section 7 | Build established: Hacker-Mutant 27566 | -2/Section 7 | Found Hpw. Transdimensional Reconstructor 27567 | -2/Section 7 | Warped through subspace to slip node 27568 | -2/Section 7 | Entered Access 27568 | -1/Access | Evolved 2 slots: Propulsion x1, Utility x1 27856 | -1/Access | Found Prototype Device 27856 | -1/Access | Identified Femtoactuators 29114 | -1/Access | Fabricated Centrium Medium Armor Plating? 29374 | -1/Access | Identified exit to Command 29442 | -1/Access | Central database locked down 29534 | -1/Access | Entered Command 29534 | -1/Command | Accompanied by 1 ally 29690 | -1/Command | Phase Generator disabled 30057 | -1/Command | Spotted Combat Programmer 30058 | -1/Command | Spotted Combat Programmer 30075 | -1/Command | Destroyed Combat Programmer 30077 | -1/Command | Spotted M Guard 30079 | -1/Command | Spotted M Guard 30121 | -1/Command | Destroyed M Guard 30130 | -1/Command | Destroyed M Guard 30299 | -1/Command | Found Unknown Piercing Weapon 30300 | -1/Command | Identified Enh. Force Lance 30426 | -1/Command | Used Integrity Redistributor, redistributed integrity from core (-233) 30504 | -1/Command | Met MAIN.C 30543 | -1/Command | 0b10 Conduit disabled 30568 | -1/Command | Destroyed MAIN.C Shell 30571 | -1/Command | MAIN.C activated Command garrisons 30621 | -1/Command | Used Integrity Redistributor, redistributed integrity from core (-287) 30628 | -1/Command | Lost 5 parts (5u) 30649 | -1/Command | System corruption reached 10% 30661 | -1/Command | Build established: Alien-Tank 30665 | -1/Command | Used Integrity Redistributor, redistributed integrity from core (-233) 30673 | -1/Command | Destroyed MAIN.C 30688 | -1/Command | Core integrity fell below 50% 30747 | -1/Command | Destroyed 12 combat bots 30814 | -1/Command | Failed to warp due to unstable space 30819 | -1/Command | Lost 3 parts (2u1w) 30849 | -1/Command | Released all parts (17) 30849 | -1/Command | Spotted B-99 Colossus 30849 | -1/Command | Spotted B-99 Colossus 30855 | -1/Command | Emitted hypermatrix ping 30860 | -1/Command | Assembled emerged from beneath the floor 30864 | -1/Command | Destroyed 8 combat bots 30876 | -1/Command | All MAIN.C guards destroyed 30880 | -1/Command | Lost 10 parts (1p1n5u3w) 30895 | -1/Command | Found Prototype Processor 30895 | -1/Command | Identified Spectral Analyzer 30899 | -1/Command | Discovered new exit (range 9) 30904 | *** | Heading to fleet! Last Messages --------------- 30857_ Slug penetrates R-10 Processor. 30857_ Penetrated by Slug. 30857_ Slug penetrates Reinforced Barrier. 30858_ K-01 Serf collects debris. 30860_ P-80 Master resets R-10 Processor, system corruption cleaned. 30864_ Slug penetrates Reinforced Barrier. 30865_ HV Slug penetrates Wall. 30865_ HV Slug penetrates S-43 Plague. 30865_ S-43 Plague suffers critical hit (Destroy). 30865_ S-43 Plague destroyed. 30865_ HV Slug penetrates Wall. 30867_ K-01 Serf collects debris. 30869_ Acquired 29 matter. 30870_ K-01 Serf collects debris. 30877_ Acquired 21 matter. 30891_ K-01 Serf destroyed. 30893_ 9SDI=WP&=9:PDK NIJA,79 30895_ Acquired Prototype Processor. 30895_ Identified Spectral Analyzer. 30899_ EXIT=FOUND Map ----- +----------------------------------------------------+ | ????????????????# % | | ????????????????# | | ####????######### % | | ????# !! ########## ######## | | ???# !! #????????###+###??????? | | ???# ! #?????????????????????? | | ??# ! #?????????????????????? | | ??# #?????????????????????? | | ?# % #?????????????????????? | | [ ?# ###############?????????????????????? | | !# #############???????????????????????? | | """ = # """T""" #???????????????????????? | | """ + """ """ #???????????????????????? | | """ # #???????????????????????? | | """ # ###?????????????????????? | | #######?## #?????????????????????? | | ?????????# ! #?????????????????????? | | ?????????# !! ###?????????????????????? | | ?????????# ! #???????????????????????? | | ?????????# ########### #???????????????????????? | | ????????# ?????????# #???????????????????????? | | ??????? ?????????# #???????????????????????? | | ????? +????????# #???????????????????????? | | ????##### #????????# ###?????????????????????? | | ????????##+###????????# #?????????????????????? | | ??????????????????????# @ #?????????????????????? | | ??????????????????????# #?????????????????????? | | ??????????????????????######?????????????????????? | | ?????????????????????????????????????????????????? | | ?????????????????????????????????????????????????? | | ?????????????????????????????????????????????????? | | ?????????????????????????????????????????????????? | | ?????????????????????????????????????????????????? | | ?????????????????????????????????????????????????? | | ?????????????????????????????????????????????????? | | ?????????????????????????????????????????????????? | | ?????????????????????????????????????????????????? | | ?????????????????????????????????????????????????? | | ?????????????????????????????????????????????????? | | ?????????????????????????????????????????????????? | | ?????????????????????????????????????????????????? | | ?????????????????????????????????????????????????? | | ?????????????????????????????????????????????????? | | ?????????????????????????????????????????????????? | | ?????????????????????????????????????????????????? | | ?????????????????????????????????????????????????? | | ?????????????????????????????????????????????????? | | ?????????????????????????????????????????????????? | | ?????????????????????????????????????????????????? | | ?????????????????????????????????????????????????? | +----------------------------------------------------+ Best States ------------- Heat Dissipation 172 Coolant Potential 100 Energy Generation 49 Energy Capacity 1100 Matter Stores 925 Matter Capacity 1425 Sight Range 24 Robot Scan Range 16 Terrain Scan Range 16 Terrain Scan Density 85 ECM Strength 1 Jamming Range 16 Cloak Strength 3 Power Amplification 40 Base Temperature (-) 200 Armor Coverage 3600 Resistance: KI 30 Resistance: TH 30 Resistance: EX 50 Resistance: EM 50 Utility Shielding 66 Point Defense Rating 240 Weapon Cycling 20 Phase Shifting 15 Evasion (%) 55 Targeting Accuracy 12 Target Analysis 8 Armor Integrity Analysis 20 Recoil Reduction 6 Matter Filtering 30 Particle Charging 30 Kinecelleration 40 Stasis Canceling 2 Offensive Hacking 56 Defensive Hacking 14 Item Schematics ----------------- Biometal Heavy Treads | -2/Quarantine | Scanalyzed Centrium Medium Armor Plating | -2/Quarantine | Scanalyzed EM Disruption Field | -2/Quarantine | Scanalyzed Adv. Hacking Suite | -2/Quarantine | Scanalyzed Robot Schematics ------------------ None Fabricated ------------ Imp. Heavy Treads | x2 | -6/Factory | Preloaded Imp. Heavy Treads | x2 | -5/Factory Machine Analyzer | x1 | -5/Factory Imp. Heavy Treads | x2 | -5/Factory Adv. Hacking Suite | x1 | -4/Factory Adv. Hacking Suite | x1 | -4/Factory Adv. Hacking Suite | x1 | -4/Factory EM Disruption Field | x1 | -4/Factory Biometal Heavy Treads | x2 | -3/Testing Imp. KE Penetrator | x1 | -3/Testing Imp. KE Penetrator | x1 | -2/Research Centrium Medium Armor Plating | x1 | -1/Access Alien Tech Used ----------------- Core Expander Integrated Dissipator Transdimensional Reconstructor Phase Redirector Core Reset Matrix Dimensional Node Initializer Integrated Mediator Subatomic Replicator Integrated Heat Negator LRC Armor LRC Storage LRC Matter Compressor High-powered Transdimensional Reconstructor Integrity Redistributor Achievements -------------- None Challenges ------------ None Game ------ Seed RocketMyomerConverter Manual? 1 Play Time 13:48:24 Cumulative 1159.7 hours Start 2021.07.27 @ 06:48:00 End 2021.08.08 @ 14:32:20 Sessions 72 Manual Loads 0 Difficulty Rogue Special Mode None Game No. 319 Rogue 319 Adventurer 0 Explorer 0 Win Type 2 Total 40 Types 25/6/6/3/0/0/0/0/0 Lore% 81 Gallery% 86 Achievement% 73 Wizard Run 0 Options --------- ASCII 0 Keyboard 1 Movement Numpad Keybinds 0 Fullscreen 1 Font 24/Smallcaps Map View 76x50 Tactical HUD 1 Map Filters NONE Filters NONE Steam 1 RUN: 98312818-d625-43d9-85c9-81c804503c26